bitfinex-derivatives/quotes_ETHF0:USTF0_20250130
["timestamp","ask_amount","ask_price","bid_price","bid_amount"]
[1738226129043,0.62704,3189.7,3189.6,2.999]
[1738226129044,3.83484,3189.7,3189.6,2.999]
[1738226129235,3.2078,3189.7,3189.2,1.14403]
[1738226129441,3.2078,3189.7,3189.0,5.94219339]
[1738226129646,1.56767,3189.6,3189.0,6.56936339]
[1738226129842,0.62716,3189.1,3189.0,3.2078]
[1738226130042,0.62722,3188.9,3188.7,3.36162339]
[1738226130244,3.2078,3189.2,3188.7,2.73439339]
[1738226130449,0.62717,3189.1,3188.7,2.73439339]
[1738226130746,3.83495,3189.2,3189.0,3.36156339]
[1738226130946,3.2078,3189.2,3189.1,0.62716]
[1738226131341,3.83495,3189.2,3189.0,3.36157339]
[1738226132143,3.2078,3189.2,3189.0,2.73439339]
[1738226132343,3.2078,3189.2,3189.1,0.62716]
[1738226133255,3.83494,3189.2,3189.0,2.73439339]
[1738226133442,3.83494,3189.2,3189.0,3.36156339]
[1738226133647,3.2078,3189.2,3189.0,2.73439339]
[1738226133848,3.2078,3189.2,3189.1,0.62716]
[1738226134650,3.83494,3189.2,3189.1,0.62716]
[1738226136054,3.2078,3189.2,3189.1,0.62716]
[1738226136258,3.83494,3189.2,3189.1,0.62716]
[1738226136850,3.2078,3189.2,3189.1,0.62716]
[1738226137245,3.2078,3189.2,3189.0,2.73439339]
[1738226137455,3.83495,3189.2,3189.1,0.62716]
[1738226138862,3.2078,3189.2,3189.1,0.62716]
[1738226139758,3.2078,3189.2,3189.1,1.14626]
[1738226144462,3.2078,3189.6,3189.1,0.5191]
[1738226144669,0.62705,3189.7,3189.5,0.62708]
[1738226144861,0.62705,3189.7,3189.6,1.15224]
[1738226145958,0.00470146,3189.8,3189.7,0.62704]
[1738226147369,0.00470146,3189.8,3189.7,3.36143339]
[1738226157963,0.00470146,3189.8,3189.7,8.36143339]
[1738226158467,3.2078,3190.5,3189.9,1.56751]
[1738226158672,0.62691,3190.4,3190.3,0.62691]
[1738226159765,3.2078,3190.5,3190.1,2.73439339]
[1738226160076,3.2078,3190.5,3190.0,0.51610146]
[1738226160077,0.62696,3190.1,3190.0,0.63166146]
[1738226160370,4.77505,3190.5,3190.0,0.00470146]
[1738226160673,0.62696,3190.2,3190.1,0.62696]
[1738226161377,3.83469,3190.5,3190.4,0.62691]
[1738226161672,3.2078,3190.5,3190.4,0.62691]
[1738226162078,3.2078,3190.5,3190.4,3.36130339]
[1738226167077,0.55030146,3190.7,3190.4,2.73439339]
[1738226167282,0.55030146,3190.7,3190.6,0.62687]
[1738226168688,0.00470146,3190.7,3190.6,0.62687]
[1738226168978,0.5263,3191.3,3191.2,0.62675]
[1738226169179,0.5263,3191.3,3191.2,3.36114339]
[1738226169882,1.15303,3191.3,3191.2,2.73439339]
[1738226170085,0.62675,3191.2,3191.1,0.62676]
[1738226170382,0.6268,3191.0,3190.9,0.6268]
[1738226170579,0.62675,3191.2,3190.9,0.62679]
[1738226170779,0.62675,3191.2,3191.1,0.62675]
[1738226170980,0.5263,3191.3,3191.2,0.62675]
[1738226172080,0.5263,3191.3,3190.9,2.73439339]
[1738226172387,0.62675,3191.2,3191.1,0.62676]
[1738226172977,0.5263,3191.3,3190.9,2.73439339]
[1738226173178,0.5263,3191.3,3191.2,0.62675]
[1738226175585,1.15303,3191.3,3191.2,0.62675]
[1738226177587,0.62678,3191.1,3191.0,0.62678]
[1738226177885,0.62682,3190.9,3190.8,0.62682]
[1738226178480,0.5227,3190.9,3190.8,0.62682]
[1738226179891,1.14951,3190.9,3190.8,0.62682]
[1738226180085,0.5227,3190.9,3190.8,0.62682]
[1738226180282,0.5227,3190.9,3190.6,2.73439339]
[1738226180487,3.83466,3190.7,3190.6,0.62687]
[1738226185401,3.83466,3190.7,3190.6,0.47378061]
[1738226185794,3.83465,3190.7,3190.6,0.47378061]
[1738226185995,3.2078,3190.7,3190.6,3.208174]
[1738226186296,0.5227,3190.9,3190.8,0.62683]
[1738226186501,3.2078,3191.1,3191.0,0.62679]
[1738226199398,1.0154,3191.5,3191.4,0.62671]
[1738226200504,0.62673,3191.3,3191.2,2.999]
[1738226200705,3.83453,3191.3,3191.2,2.999]
[1738226203803,3.83453,3191.3,3191.2,2.12772047]
[1738226204809,3.83453,3191.3,3191.2,1.56654982]
[1738226205205,3.83453,3191.3,3191.2,2.19329982]
[1738226205412,3.2078,3191.3,3191.2,2.19329982]
[1738226205612,3.83453,3191.3,3191.2,2.19329982]
[1738226206214,3.83453,3191.3,3191.2,0.62675]
[1738226206416,3.2078,3191.3,3191.2,0.62675]
[1738226207512,3.83453,3191.3,3191.2,0.62675]
[1738226208013,0.62676,3191.2,3191.1,0.62676]
[1738226208313,0.5053,3191.2,3191.1,0.62676]
[1738226208517,0.5053,3191.2,3190.7,6.92225321]
[1738226209215,1.13206,3191.2,3191.1,0.62677]
[1738226210002,1.13206,3191.2,3191.1,0.49019594]
[1738226211210,0.5053,3191.2,3191.1,0.49019594]
[1738226211423,0.62681,3191.0,3190.8,0.62683]
[1738226211609,0.62678,3191.1,3191.0,0.62678]
[1738226214718,0.5053,3191.2,3191.1,0.62677]
[1738226215411,1.13205,3191.2,3191.1,0.62677]
[1738226215719,0.5053,3191.2,3191.1,0.62677]
[1738226216015,1.13205,3191.2,3191.1,0.62677]
[1738226216214,1.13206,3191.2,3191.1,0.62677]
[1738226217318,3.2078,3191.3,3190.7,3.78859339]
[1738226217515,3.2078,3191.3,3191.2,0.62675]
[1738226218413,3.2078,3191.3,3191.0,1.56697]
[1738226218715,3.2078,3191.3,3191.2,0.62675]
[1738226221511,3.83453,3191.3,3191.2,0.62675]
[1738226221712,3.2078,3191.3,3191.2,0.62675]
[1738226223121,3.83453,3191.3,3191.2,0.62675]
[1738226223821,3.2078,3191.3,3191.2,0.62675]
[1738226224426,3.2078,3191.3,3191.2,0.49996582]
[1738226225413,3.83453,3191.3,3191.2,0.49996582]
[1738226225624,3.83453,3191.3,3191.2,0.40833853]
[1738226225821,3.2078,3191.3,3191.2,0.40833853]
[1738226226616,3.2078,3191.3,3191.2,1.70505788]
[1738226226813,3.2078,3191.3,3191.2,2.72185788]
[1738226228624,3.2078,3191.3,3191.2,1.42513853]
[1738226229117,3.83453,3191.3,3191.2,1.0168]
[1738226229317,4.35423,3191.3,3191.2,0.5078]
[1738226230319,3.7275,3191.3,3190.9,2.74007332]
[1738226230624,3.7275,3191.3,3190.8,2.62744982]
[1738226230816,0.6268,3191.0,3190.9,0.6268]
[1738226231220,0.62678,3191.1,3191.0,0.62679]
[1738226232827,0.62678,3191.1,3190.8,2.62744982]
[1738226232828,3.7275,3191.3,3190.8,2.62744982]
[1738226233023,0.62679,3191.0,3190.9,0.6268]
[1738226233222,3.7275,3191.3,3190.8,2.62744982]
[1738226233424,0.62676,3191.2,3191.0,0.62677]
[1738226233624,0.62677,3191.1,3191.0,0.48891528]
[1738226234028,3.7275,3191.3,3190.8,2.62744982]
[1738226234331,3.7275,3191.3,3191.2,0.62675]
[1738226234824,3.2078,3191.3,3191.2,0.62675]
[1738226235227,3.2078,3191.3,3191.2,3.36682332]
[1738226241330,3.83453,3191.3,3191.2,3.36682332]
[1738226241528,3.2078,3191.3,3191.2,3.36682332]
[1738226242533,3.83454,3191.3,3191.2,0.62675]
[1738226243427,3.2078,3191.3,3191.0,0.5421]
[1738226243635,0.62675,3191.2,3191.1,0.62675]
[1738226244532,3.83454,3191.3,3191.2,0.62675]
[1738226247134,0.62676,3191.2,3191.1,0.62675]
[1738226247434,1.15926,3191.2,3191.1,0.62675]
[1738226247625,0.5325,3191.2,3191.1,0.62675]
[1738226248436,1.0559,3191.2,3191.1,0.62675]
[1738226249535,3.83452,3191.4,3191.0,1.56654982]
[1738226249836,3.83452,3191.4,3191.3,0.62673]
[1738226250133,3.2078,3191.4,3191.3,0.62673]
[1738226250634,3.2078,3191.4,3191.3,1.63693]
[1738226253830,3.2078,3191.4,3191.3,3.20347982]
[1738226254032,3.83451,3191.4,3191.3,3.20347982]
[1738226254234,3.83451,3191.4,3191.3,1.56654982]
[1738226254529,4.35181,3191.4,3191.3,1.56654982]
[1738226254836,4.35181,3191.4,3191.3,1.22754555]
[1738226256331,4.35181,3191.4,3191.3,0.98321022]
[1738226257039,0.62687,3190.7,3190.6,0.62685]
[1738226257337,0.62687,3190.6,3190.5,3.83468]
[1738226257538,1.15237,3190.6,3190.5,3.83468]
[1738226257726,0.5255,3190.6,3190.5,3.83468]
[1738226258738,1.15237,3190.6,3190.5,3.83468]
[1738226259041,0.5255,3190.6,3190.5,3.83468]
[1738226260433,1.15237,3190.6,3190.5,3.83468]
[1738226260641,0.5255,3190.6,3190.5,3.83468]
[1738226263145,0.5255,3190.6,3190.5,0.62688]
[1738226265443,0.5255,3190.6,3190.5,3.36732379]
[1738226267244,1.0378,3190.9,3190.5,2.74044379]
[1738226267440,1.0378,3190.9,3190.8,3.36727379]
[1738226268238,3.7407,3191.0,3190.8,3.36727379]
[1738226268445,3.7407,3191.0,3190.9,0.62681]
[1738226273042,4.36749,3191.0,3190.9,0.62681]
[1738226273647,3.7407,3191.0,3190.9,0.62681]
[1738226274345,4.36749,3191.0,3190.9,0.62681]
[1738226274538,3.7407,3191.0,3190.9,0.62681]
[1738226275043,3.7407,3191.0,3190.8,2.74044379]
[1738226275249,1.0706,3190.9,3190.7,2.999]
[1738226275448,0.62683,3190.8,3190.7,2.999]
[1738226276244,0.62683,3190.8,3190.7,3.62585]
[1738226277550,0.62683,3190.8,3190.7,0.62685]
[1738226277748,1.0706,3190.9,3190.5,2.74044379]
[1738226278050,3.7407,3191.0,3190.9,0.62681]
[1738226278550,3.7407,3191.0,3190.9,2.45843944]
[1738226280453,3.2078,3191.0,3190.9,3.75556888]
[1738226280652,3.2078,3191.0,3190.9,3.90071375]
[1738226281547,3.2078,3191.4,3191.1,1.56692]
[1738226281743,3.2078,3191.4,3191.3,0.62673]
[1738226283846,3.2078,3191.4,3191.3,1.67933]
[1738226287952,3.2078,3191.4,3191.3,0.62673]
[1738226288350,4.34121,3191.4,3191.3,0.62673]
[1738226288552,4.34122,3191.4,3191.2,3.36613375]
[1738226288750,0.5112,3191.3,3191.2,3.36613375]
[1738226291754,3.7145,3191.4,3191.3,0.62673]
[1738226291957,0.00470146,3191.6,3191.5,0.62669]
[1738226292153,0.00470146,3191.6,3191.5,3.36609375]
[1738226292356,3.2078,3192.2,3191.5,8.6866075]
[1738226292558,3.2078,3192.2,3192.1,3.36597375]
[1738226293167,3.2078,3192.2,3191.8,2.73940375]
[1738226293457,3.83435,3192.2,3192.0,0.62658]
[1738226293960,3.83435,3192.2,3192.1,0.62657]
[1738226294154,3.83435,3192.2,3192.0,0.62658]
[1738226294661,0.62657,3192.1,3192.0,0.62658]
[1738226295660,3.2078,3192.2,3191.8,2.73940375]
[1738226295960,3.2078,3192.2,3192.1,0.62657]
[1738226298862,3.2078,3192.2,3192.1,3.36597375]
[1738226307360,3.83435,3192.2,3192.1,2.73940375]
[1738226308169,3.2078,3192.2,3192.0,2.999]
[1738226308460,2.18637,3192.1,3192.0,2.3814051]
[1738226309259,2.18637,3192.1,3192.0,3.0079951]
[1738226309462,2.18637,3192.1,3192.0,2.3814051]
[1738226310266,2.18637,3192.1,3191.9,0.6266]
[1738226310663,2.18637,3192.1,3191.8,2.73940375]
[1738226310866,2.18637,3192.1,3192.0,0.62659]
[1738226311171,1.5598,3192.1,3192.0,0.62659]
[1738226311465,2.18637,3192.1,3192.0,0.62659]
[1738226313263,1.5598,3192.1,3191.8,2.73940375]
[1738226313568,0.62661,3192.0,3191.9,0.62661]
[1738226314362,2.18638,3192.1,3192.0,0.62659]
[1738226314669,0.6266,3192.0,3191.9,0.62661]
[1738226315773,0.6266,3192.0,3191.8,2.73940375]
[1738226315774,0.62661,3191.9,3191.8,2.73940375]
[1738226316573,0.6266,3192.0,3191.9,0.62661]
[1738226317171,0.62661,3191.9,3191.8,2.73940375]
[1738226317566,0.62663,3191.8,3191.7,0.00470146]
[1738226317773,3.83443,3191.8,3191.7,0.00470146]
[1738226319166,1.56672,3191.6,3190.9,2.73940375]
[1738226319367,3.2078,3191.2,3190.6,2.73940375]
[1738226319565,0.62684,3190.8,3190.7,0.62684]
[1738226319765,0.62681,3190.9,3190.8,0.62681]
[1738226319969,4.77468,3191.2,3190.6,2.73940375]
[1738226320164,4.77468,3191.2,3190.7,0.62684]
[1738226320165,0.62683,3190.8,3190.7,0.62684]
[1738226320872,0.62683,3190.8,3190.6,3.37095521]
[1738226321169,0.62683,3190.8,3190.7,0.62685]
[1738226323969,0.5027,3191.1,3190.6,2.74410521]
[1738226324270,0.5027,3191.1,3191.0,0.62679]
[1738226325174,3.2078,3191.2,3190.9,2.73940375]
[1738226325366,3.2078,3191.2,3191.1,0.62677]
[1738226326073,3.2078,3191.6,3191.5,0.62669]
[1738226326377,3.2078,3191.6,3191.5,3.36609375]
[1738226326581,3.2078,3192.7,3191.7,1.5666]
[1738226326773,3.2078,3192.7,3192.1,2.73940375]
[1738226326774,3.7068,3192.7,3192.1,2.73940375]
[1738226327075,0.63124146,3192.3,3192.1,3.36596375]
[1738226327277,0.00470146,3192.3,3192.1,2.73940375]
[1738226327576,0.62655,3192.2,3192.1,2.73940375]
[1738226328573,0.00470146,3192.3,3192.1,2.73940375]
[1738226328871,0.00470146,3192.3,3192.2,0.62655]
[1738226329071,0.63123146,3192.3,3192.2,0.62655]
[1738226329276,0.00470146,3192.3,3192.2,0.62655]
[1738226333871,0.00470146,3192.3,3192.2,1.16235]
[1738226334576,0.00470146,3192.3,3192.2,0.62655]
[1738226338084,0.00470146,3192.3,3192.2,1.13355]
[1738226342384,0.00470146,3192.3,3192.2,1.65585]
[1738226342581,0.00470146,3192.3,3192.2,2.17455]
[1738226348788,0.00470146,3192.3,3192.2,5.38235]
[1738226350485,1.0176,3193.0,3192.2,4.7558]
[1738226350691,1.0176,3193.0,3192.9,0.62642]
[1738226351079,1.0176,3193.0,3192.9,1.12332]
[1738226351286,0.5012,3193.0,3192.9,1.12332]
[1738226352590,0.54160146,3193.3,3193.1,0.62637]
[1738226352790,0.54160146,3193.3,3193.1,2.73940375]
[1738226352791,1.16696,3193.2,3193.1,2.73940375]
[1738226354292,1.16696,3193.2,3193.1,3.36578375]
[1738226354999,0.5406,3193.2,3193.1,3.36578375]
[1738226355191,1.16696,3193.2,3193.1,3.36578375]
[1738226355595,0.5406,3193.2,3193.1,3.36578375]
[1738226356288,1.16696,3193.2,3193.1,3.36578375]
[1738226356591,0.5406,3193.2,3193.1,3.36578375]
[1738226357194,1.16696,3193.2,3193.1,2.73940375]
[1738226357392,0.62638,3193.1,3193.0,0.62638]
[1738226359095,0.62642,3193.0,3192.9,0.62641]
[1738226359290,0.5406,3193.2,3192.8,2.73940375]
[1738226359291,0.62643,3192.9,3192.8,0.62642]
[1738226359683,0.62645,3192.7,3192.6,0.00470146]
[1738226359886,0.62645,3192.7,3192.2,3.36595375]
[1738226359887,2.73940375,3192.8,3192.0,0.62658]
[1738226360089,0.62657,3192.1,3192.0,0.49522433]
[1738226360492,3.2078,3192.2,3192.1,0.62657]
[1738226360889,3.83435,3192.2,3192.1,0.62657]
[1738226361290,3.2078,3192.2,3192.1,0.62657]
[1738226362797,3.2078,3192.2,3191.9,2.73940375]
[1738226362798,0.62653,3192.4,3192.2,0.62654]
[1738226362998,4.2181,3192.6,3192.2,2.73940375]
[1738226363201,4.2181,3192.6,3192.5,3.36589375]
[1738226363502,0.5091,3192.7,3192.5,2.73940375]
[1738226363701,0.5091,3192.7,3192.6,0.62647]
[1738226363901,0.5091,3192.7,3192.6,0.06797851]
[1738226364102,0.5091,3192.7,3192.6,0.62647]
[1738226366498,4.8718,3193.0,3192.5,2.73940375]
[1738226366703,4.2454,3193.0,3192.9,0.62642]
[1738226366899,3.7304,3193.0,3192.9,0.62642]
[1738226367205,0.5144,3193.1,3193.0,0.6264]
[1738226368105,0.5144,3193.1,3193.0,0.49733847]
[1738226368311,0.00470146,3193.3,3193.2,0.62636]
[1738226368507,1.0305,3194.1,3194.0,0.6262]
[1738226368705,1.0305,3194.1,3194.0,3.36560375]
[1738226369304,4.35998,3194.6,3194.0,2.73940375]
[1738226369500,4.35998,3194.6,3194.5,0.6261]
[1738226369811,4.36468146,3194.6,3194.5,0.6261]
[1738226370011,3.73860146,3194.6,3194.5,0.6261]
[1738226370803,3.73860146,3194.6,3194.5,3.8339]
[1738226370804,0.00470146,3194.6,3194.5,3.8339]
[1738226375107,0.00470146,3194.6,3194.5,3.2078]
[1738226375317,0.63078146,3194.6,3194.5,3.2078]
[1738226376311,0.00470146,3194.6,3194.4,0.62612]
[1738226376513,0.63080146,3194.6,3194.4,0.62612]
[1738226376717,0.00470146,3194.6,3194.5,0.6261]
[1738226378610,0.00470146,3194.6,3194.5,1.15]
[1738226380219,0.63078146,3194.6,3194.5,0.6261]
[1738226380616,0.6261,3194.5,3194.4,0.62611]
[1738226380817,0.62612,3194.4,3194.3,2.73940375]
[1738226381011,0.62618,3194.1,3194.0,2.74410521]
[1738226384923,0.62618,3194.1,3194.0,0.00470146]
[1738226385523,0.6263,3193.5,3193.4,3.36571375]
[1738226385723,0.6263,3193.5,3193.4,2.73940375]
[1738226386120,0.6263,3193.5,3193.4,3.36572375]
[1738226388829,0.5412,3193.7,3193.4,2.73940375]
[1738226389028,0.5412,3193.7,3193.6,0.62628]
[1738226389826,0.5412,3193.7,3193.4,2.73940375]
[1738226389827,0.62621,3194.0,3193.9,0.62621]
[1738226390131,0.62621,3194.0,3193.9,3.36561375]
[1738226390631,0.62621,3194.0,3193.9,2.73940375]
[1738226391328,0.62624,3193.8,3193.7,0.62625]
[1738226393235,0.62623,3193.9,3193.8,0.62621]
[1738226395538,0.5093,3194.1,3193.6,2.73940375]
[1738226395737,0.62626,3193.8,3193.7,0.62625]
[1738226397530,0.62626,3193.8,3193.6,2.73940375]
[1738226397731,0.62626,3193.8,3193.7,0.62625]
[1738226398336,0.62626,3193.7,3193.6,2.72887777]
[1738226399531,0.62626,3193.7,3193.6,2.10260777]
[1738226399929,0.62626,3193.7,3193.6,2.72888777]
[1738226400125,0.62626,3193.7,3193.6,2.10260777]
[1738226400337,0.62626,3193.7,3193.6,2.72888777]
[1738226400538,0.62626,3193.7,3193.6,2.10260777]
[1738226401041,0.5093,3194.1,3193.6,2.10260777]
[1738226401245,0.62622,3194.0,3193.9,3.36561375]
[1738226402036,0.62622,3194.0,3193.9,2.73940375]
[1738226402237,0.5093,3194.1,3193.8,0.62623]
[1738226402436,0.62622,3193.9,3193.8,0.62623]
[1738226403331,0.62626,3193.8,3193.7,0.62625]
[1738226404040,0.62626,3193.8,3193.6,3.19613814]
[1738226404239,0.62626,3193.8,3193.7,0.62625]
[1738226404643,1.56551,3194.0,3193.6,2.73940375]
[1738226404840,3.2078,3193.8,3193.3,3.27110375]
[1738226405143,0.62632,3193.4,3193.3,3.89743375]
[1738226405437,0.62632,3193.4,3193.3,3.36573375]
[1738226405642,0.62632,3193.4,3193.3,2.70320451]
[1738226406745,0.62632,3193.4,3193.3,2.07687451]
[1738226407046,0.62636,3193.2,3193.1,0.00470146]
[1738226407640,0.62636,3193.2,3193.1,0.63108146]
[1738226410148,0.62634,3193.4,3193.3,0.62633]
[1738226410348,0.62634,3193.4,3193.3,3.36573375]
[1738226412843,0.503,3193.8,3193.3,2.73940375]
[1738226413144,3.2078,3193.9,3193.7,2.73940375]
[1738226413349,3.83404,3193.9,3193.8,1.0613]
[1738226413537,3.83404,3193.9,3193.8,1.68754]
[1738226413740,3.83404,3193.9,3193.8,1.15084]
[1738226415741,0.62624,3193.9,3193.8,1.15084]
[1738226418153,3.2078,3193.9,3193.4,2.73940375]
[1738226418353,0.62633,3193.5,3193.4,2.73940375]
[1738226418553,0.62633,3193.5,3193.4,3.36572375]
[1738226420356,0.62633,3193.5,3193.4,2.73940375]
[1738226420653,2.08044,3193.8,3193.2,0.5046]
[1738226420857,0.62636,3193.2,3193.1,6.57826521]
[1738226423656,0.62636,3193.3,3193.2,0.62634]
[1738226427054,2.08041,3193.8,3193.1,5.95190521]
[1738226427055,0.5148,3193.8,3193.1,5.95190521]
[1738226427262,0.62629,3193.7,3193.6,3.36567375]
[1738226428348,0.62629,3193.7,3193.6,2.73940375]
[1738226428552,0.62629,3193.7,3193.6,3.36568375]
[1738226430561,0.5148,3193.8,3193.1,0.00470146]
[1738226430760,3.83416,3193.2,3193.1,0.00470146]
[1738226431263,0.62649,3192.5,3192.4,2.73940375]
[1738226434761,0.62649,3192.5,3192.4,3.36591375]
[1738226437155,3.2078,3192.6,3192.4,2.73940375]
[1738226437363,0.62647,3192.7,3192.5,0.62649]
[1738226437564,0.63114146,3192.8,3192.7,0.62645]
[1738226437760,0.63114146,3192.8,3192.7,1.12355]
[1738226438171,0.63114146,3192.8,3192.7,0.4971]
[1738226438965,0.62645,3192.7,3192.6,2.73940375]
[1738226439773,0.62645,3192.7,3192.6,3.36587375]
[1738226440463,0.62645,3192.7,3192.6,2.73940375]
[1738226445167,0.62649,3192.5,3192.4,3.2078]
[1738226446174,0.62655,3192.2,3192.1,0.00470146]
[1738226452380,0.62655,3192.2,3192.1,0.55250146]
[1738226462382,0.62655,3192.2,3192.1,0.00470146]
[1738226466189,0.62655,3192.2,3192.1,0.00290394]
[1738226468188,3.2078,3192.3,3191.4,3.36610375]
[1738226468382,0.62669,3191.5,3191.4,3.36610375]
[1738226471290,0.62667,3191.7,3191.6,0.62665]
[1738226471488,3.2078,3191.8,3191.7,0.62665]
[1738226471489,3.83445,3191.8,3191.7,0.62665]
[1738226471690,3.83445,3191.8,3191.7,1.14235]
[1738226474495,0.62665,3191.8,3191.7,1.14235]
[1738226476594,3.2078,3192.2,3191.6,2.73940375]
[1738226476790,0.62665,3191.8,3191.7,0.62663]
[1738226477998,0.62671,3191.4,3191.3,6.47950375]
[1738226478201,0.62671,3191.4,3191.3,2.73940375]
[1738226478894,3.83451,3191.4,3191.3,2.73940375]
[1738226479295,3.2078,3191.4,3191.0,2.73940375]
[1738226479500,0.62677,3191.1,3191.0,2.73940375]
[1738226479696,0.62677,3191.1,3191.0,3.36619375]
[1738226481806,0.62677,3191.1,3191.0,3.87809375]
[1738226484407,0.62677,3191.1,3191.0,7.08589375]
[1738226484702,4.77423,3192.2,3191.7,0.62664]
[1738226484904,4.77423,3192.2,3191.0,11.45910375]
[1738226484905,3.83435,3192.2,3192.1,2.73940375]
[1738226485103,0.62655,3192.2,3192.1,2.73940375]
[1738226486898,0.62655,3192.2,3192.1,3.36597375]
[1738226488098,3.83429,3192.6,3192.5,0.62649]
[1738226488311,3.83427,3192.6,3192.5,3.36589375]
[1738226488509,3.83427,3192.6,3192.5,2.73940375]
[1738226489002,0.62653,3192.3,3192.2,2.73940375]
[1738226489505,1.0534,3192.5,3192.2,2.73940375]
[1738226489705,0.62653,3192.4,3192.3,0.62653]
[1738226490711,0.63114146,3192.8,3192.3,1.56634]
[1738226491004,0.00470146,3192.8,3192.7,2.73940375]
[1738226491210,0.00470146,3192.8,3192.7,3.36585375]
[1738226491714,0.63114146,3192.8,3192.7,3.36585375]
[1738226493513,0.63114146,3192.8,3192.7,2.73940375]
[1738226494007,0.63114146,3192.8,3192.7,3.36585375]
[1738226498200,0.63114146,3192.8,3192.7,2.73940375]
[1738226499714,0.00470146,3192.8,3192.4,6.57370375]
[1738226499916,0.00470146,3192.8,3192.4,5.94720375]
[1738226499917,0.62649,3192.5,3192.4,5.94720375]
[1738226500415,0.62649,3192.5,3192.4,3.2078]
[1738226502016,0.62649,3192.5,3192.4,3.83431]
[1738226502219,0.62649,3192.5,3192.4,6.57371375]
[1738226502510,0.00470146,3192.8,3192.4,5.94720375]
[1738226502707,0.63116146,3192.8,3192.7,3.36585375]
[1738226505717,0.00470146,3192.8,3192.6,0.62647]
[1738226505921,0.62649,3192.6,3192.5,0.62649]
[1738226506524,0.62649,3192.5,3192.4,6.57370375]
[1738226506819,1.13149,3192.5,3192.4,6.57370375]
[1738226507213,0.00470146,3192.8,3192.4,5.94720375]
[1738226507414,0.00470146,3192.8,3192.5,0.515]
[1738226507614,0.63115146,3192.8,3192.7,3.36585375]
[1738226509124,0.00470146,3192.8,3192.7,3.36585375]
[1738226510222,0.63114146,3192.8,3192.7,3.36585375]
[1738226521929,0.62649,3192.5,3192.4,3.2078]
[1738226522227,0.62655,3192.2,3192.1,3.89425375]
[1738226522434,0.62655,3192.2,3192.1,3.36597375]
[1738226522622,0.62655,3192.2,3192.1,2.73940375]
[1738226522930,0.62659,3192.0,3191.9,0.5283]
[1738226523431,0.62661,3191.9,3191.8,2.73940375]
[1738226523631,1.13641,3191.9,3191.8,2.73940375]
[1738226524725,1.13641,3191.9,3191.8,3.36603375]
[1738226525229,4.77419,3192.2,3192.1,0.62657]
[1738226525230,3.83436,3192.2,3192.1,0.62657]
[1738226525431,3.83436,3192.2,3192.1,3.36597375]
[1738226525630,3.83436,3192.2,3192.1,2.73940375]
[1738226525823,3.83436,3192.2,3192.1,3.36597375]
[1738226526025,3.83436,3192.2,3191.9,1.1512]
[1738226526228,0.62659,3192.0,3191.9,3.36600375]
[1738226526428,1.12318,3192.1,3192.0,0.62659]
[1738226526623,3.2078,3192.2,3191.9,2.73940375]
[1738226526837,3.2078,3192.2,3192.1,0.62657]
[1738226532239,3.2078,3192.2,3192.1,1.65517]
[1738226534135,3.2078,3192.2,3192.1,0.62657]
[1738226534325,3.7071,3192.2,3192.1,0.62657]
[1738226537441,0.4993,3192.2,3192.1,0.62657]
[1738226537840,0.5452,3192.3,3191.9,2.73940375]
[1738226538143,0.5452,3192.3,3192.2,3.36595375]
[1738226539339,3.83433,3192.4,3192.3,0.62653]
[1738226540139,0.00470146,3192.8,3192.4,1.56628]
[1738226540332,0.00470146,3192.8,3192.7,3.36585375]
[1738226545043,0.63113146,3192.8,3192.7,2.73940375]
[1738226545340,0.63113146,3192.8,3192.7,3.36585375]
[1738226545541,0.63113146,3192.8,3192.7,2.73940375]
[1738226545742,0.63113146,3192.8,3192.5,4.36839]
[1738226545743,0.62647,3192.6,3192.5,4.36839]
[1738226546443,1.16197,3192.6,3192.5,3.83429]
[1738226547645,1.16197,3192.6,3192.5,3.2078]
[1738226550444,1.16197,3192.6,3192.5,3.83429]
[1738226554152,0.62649,3192.5,3192.4,2.73940375]
[1738226554343,0.62654,3192.4,3192.3,0.62651]
[1738226559045,0.5355,3192.6,3192.4,0.62649]
[1738226559046,0.62651,3192.5,3192.4,0.62649]
[1738226559246,1.16199,3192.6,3192.5,0.62649]
[1738226559446,1.16199,3192.6,3192.5,0.48423798]
[1738226565251,0.62649,3192.5,3192.4,2.73940375]
[1738226565460,0.62655,3192.3,3192.2,0.62653]
[1738226566754,0.62655,3192.2,3192.1,3.36595375]
[1738226566961,1.13065,3192.2,3192.1,3.36595375]
[1738226567260,1.13065,3192.2,3192.1,3.36597375]
[1738226567654,1.13065,3192.2,3192.1,2.73940375]
[1738226568150,1.13065,3192.2,3192.1,3.36597375]
[1738226574760,0.62655,3192.2,3192.1,3.36597375]
[1738226574961,0.00470146,3192.8,3192.1,4.30581375]
[1738226575157,0.62647,3192.7,3192.6,3.36586375]
[1738226575358,0.00470146,3192.8,3192.6,2.73940375]
[1738226575653,0.00470146,3192.8,3192.7,0.62645]
[1738226575854,0.00470146,3192.8,3192.7,1.15475]
[1738226576356,0.00470146,3192.8,3192.7,4.36255]
[1738226583761,0.00470146,3192.8,3192.7,3.83425]
[1738226583961,0.63113146,3192.8,3192.7,3.83425]
[1738226584460,1.13683146,3192.8,3192.7,0.62645]
[1738226584668,0.62645,3192.7,3192.6,3.36586375]
[1738226584964,0.62645,3192.7,3192.6,2.73940375]
[1738226585167,0.51040146,3192.8,3192.3,2.73940375]
[1738226585366,0.62651,3192.4,3192.3,2.73940375]
[1738226585767,0.62657,3192.1,3192.0,3.86158375]
[1738226585964,0.62657,3192.1,3192.0,2.73940375]
[1738226586260,0.62657,3192.1,3192.0,3.36599375]
[1738226586467,0.62657,3192.1,3192.0,2.73940375]
[1738226587263,0.62657,3192.1,3192.0,3.36599375]
[1738226588359,0.62657,3192.1,3192.0,2.73940375]
[1738226590274,0.62657,3192.1,3192.0,3.36599375]
[1738226592875,0.5201,3192.2,3192.0,2.73940375]
[1738226593178,0.5201,3192.2,3192.1,0.62657]
[1738226593179,1.14667,3192.2,3192.1,0.62657]